bitfinex-derivatives/quotes_BNBF0:USTF0_20250406
["timestamp","ask_amount","ask_price","bid_price","bid_amount"]
[1743900422919,0.29329097,593.67,592.7,0.29372034]
[1743900423220,0.29329097,593.67,592.69,0.33744453]
[1743900423515,0.29329097,593.67,592.7,0.29377265]
[1743900424020,0.33688182,593.68,592.7,0.29377265]
[1743900424321,0.29329962,593.66,592.7,0.29377265]
[1743900425019,0.929,593.65,592.69,0.33744453]
[1743900425219,0.929,593.65,592.7,0.29379664]
[1743900425920,0.929,593.65,592.69,0.33744453]
[1743900426120,0.929,593.65,592.7,0.2937968]
[1743900426620,0.929,593.65,592.69,0.33744453]
[1743900426820,0.929,593.65,592.7,0.29379788]
[1743900427320,0.29330333,593.64,592.7,0.29379788]
[1743900430017,0.929,593.65,592.7,0.29379788]
[1743900430416,0.29330333,593.63,592.7,0.29379788]
[1743900430821,0.743,593.62,592.7,0.29379788]
[1743900432948,0.743,593.62,592.69,0.33744453]
[1743900434039,0.743,593.62,592.58,1.25827326]
[1743900434243,0.30992844,593.61,592.58,1.25827326]
[1743900434445,0.30992844,593.61,592.3,1.25827326]
[1743900434656,0.30992844,593.61,592.31,0.29409804]
[1743900436352,0.30992844,593.61,592.32,0.29341461]
[1743900436553,0.29342698,593.6,592.32,0.29341461]
[1743900436754,0.30992844,593.59,592.33,0.29409804]
[1743900441126,0.86,593.58,592.33,0.29409804]
[1743900441663,0.30998355,593.57,592.33,0.29409804]
[1743900442254,0.30998355,593.57,591.91,0.29409804]
[1743900442465,0.29349875,593.56,592.27,0.29349875]
[1743900442667,0.29349875,593.56,592.28,0.29409804]
[1743900442867,0.29349875,593.56,591.91,0.29409804]
[1743900443068,0.29349875,593.56,591.9,1.25827326]
[1743900443270,0.30998345,593.55,591.91,0.29414468]
[1743900443564,0.30998345,593.55,591.91,0.58764343]
[1743900443764,0.30998345,593.55,591.92,0.63202817]
[1743900443967,0.30998345,593.55,591.93,0.29414468]
[1743900444664,0.29349875,593.56,591.93,0.29414468]
[1743900445455,0.29349875,593.56,591.94,0.29414468]
[1743900445650,0.29349875,593.56,591.93,0.29414468]
[1743900445943,0.29349875,593.56,591.94,0.29414468]
[1743900446143,0.29349875,593.56,591.95,0.29414468]
[1743900446338,0.29349875,593.56,591.96,0.29414468]
[1743900446534,0.29349875,593.56,591.97,0.29394675]
[1743900446736,0.29349875,593.56,591.93,0.29394675]
[1743900446934,0.29349875,593.56,591.94,0.29394675]
[1743900447238,0.29349875,593.56,591.95,0.29394675]
[1743900447438,0.29349875,593.56,591.96,0.29394675]
[1743900447735,0.29349875,593.56,591.97,0.29394675]
[1743900448039,0.29349875,593.56,591.98,0.29394675]
[1743900448239,0.29349875,593.56,591.92,0.33788349]
[1743900448240,0.86,593.58,592.02,1.25827326]
[1743900448441,0.29345173,593.55,592.04,0.33781501]
[1743900448642,0.33696128,593.54,592.05,0.29394675]
[1743900448840,0.64688507,593.54,592.05,0.29394675]
[1743900449043,0.30992379,593.53,592.07,0.33779789]
[1743900449345,0.30992379,593.53,592.08,0.29394675]
[1743900449544,0.30992379,593.53,592.09,0.29394675]
[1743900449739,0.30992379,593.53,592.1,0.29394675]
[1743900449943,0.30992379,593.53,592.11,0.29394675]
[1743900450143,0.30992379,593.53,592.12,0.29394675]
[1743900450339,0.30992379,593.53,592.13,0.63171041]
[1743900450539,0.33697263,593.52,592.14,0.63170471]
[1743900450747,0.30992379,593.51,592.16,1.25827326]
[1743900451040,0.33698399,593.5,592.17,0.6316876]
[1743900451245,0.30992379,593.49,592.18,0.63168189]
[1743900451444,0.63041345,593.5,592.19,0.33772944]
[1743900451646,0.3099351,593.49,592.2,0.29391318]
[1743900451843,0.3099351,593.49,592.21,0.63163121]
[1743900452043,0.3099351,593.49,592.22,0.63162551]
[1743900452242,0.3099351,593.49,592.23,0.63161981]
[1743900452442,0.3099351,593.49,592.24,0.63161411]
[1743900452640,0.3099351,593.49,592.25,0.63160841]
[1743900452844,0.3099351,593.49,592.26,0.6316027]
[1743900453044,0.3099351,593.49,592.27,0.631597]
[1743900453346,0.3099351,593.49,592.28,0.29391318]
[1743900453546,0.63041345,593.5,592.28,0.29391318]
[1743900454146,0.33698399,593.5,592.28,0.29391318]
[1743900454547,0.29340843,593.49,592.28,0.29391318]
[1743900456448,0.29340843,593.49,592.27,0.33768382]
[1743900456650,0.33699534,593.48,592.28,0.29382667]
[1743900457356,0.29342698,593.47,592.28,0.29382667]
[1743900457552,0.630428,593.47,592.28,0.29382667]
[1743900457852,0.614,593.46,592.28,0.29382667]
[1743900458053,0.614,593.46,592.27,0.33768382]
[1743900458254,0.614,593.46,592.28,0.293866]
[1743900458554,0.33701238,593.45,592.28,0.293866]
[1743900459852,0.33701238,593.45,592.27,0.33768382]
[1743900460049,0.33701238,593.45,592.28,0.29394906]
[1743900460351,0.29346039,593.44,592.28,0.29394906]
[1743900460555,0.33702374,593.43,592.28,0.29394906]
[1743900463454,0.29347029,593.42,592.28,0.29394906]
[1743900463654,0.3370351,593.41,592.28,0.29394906]
[1743900466258,0.3370351,593.41,592.27,0.33768382]
[1743900466454,0.3370351,593.41,592.29,0.29394834]
[1743900466758,0.3370351,593.41,592.3,0.29394834]
[1743900467057,0.3370351,593.41,592.31,0.29394834]
[1743900467253,0.3370351,593.41,592.28,0.29394834]
[1743900467457,0.3370351,593.41,592.32,0.29394834]
[1743900467655,0.3370351,593.41,592.33,0.29394834]
[1743900467856,0.3370351,593.41,592.28,0.29394834]
[1743900468056,0.3370351,593.41,592.34,0.29394834]
[1743900468257,0.3370351,593.41,592.35,0.29394834]
[1743900468457,0.3370351,593.41,592.28,0.29394834]
[1743900468654,0.3370351,593.41,592.36,0.29394834]
[1743900468858,0.3370351,593.41,592.37,0.29394834]
[1743900469359,0.29347276,593.4,592.38,0.29394834]
[1743900469554,0.33704646,593.39,592.28,0.29394834]
[1743900471958,0.31001601,593.38,592.28,0.29394834]
[1743900472160,0.33705782,593.37,592.28,0.29394834]
[1743900472358,0.31001601,593.36,592.28,0.29394834]
[1743900472555,0.33706918,593.35,592.28,0.29394834]
[1743900472757,0.31001601,593.34,592.28,0.29394834]
[1743900472956,0.33708054,593.33,592.28,0.29394834]
[1743900473661,0.33708054,593.33,592.27,0.33768382]
[1743900473865,0.33708054,593.33,592.28,0.29400511]
[1743900475365,0.29347895,593.32,592.28,0.29400511]
[1743900475561,0.63056517,593.32,592.28,0.29400511]
[1743900476366,0.63056517,593.32,592.27,0.33768382]
[1743900476566,0.63056517,593.32,592.28,0.29399182]
[1743900477867,0.3370919,593.31,592.28,0.29399182]
[1743900478163,0.3370919,593.31,592.27,0.33768382]
[1743900478362,0.29350246,593.3,592.27,0.33768382]
[1743900478567,0.33710327,593.29,592.27,0.33768382]
[1743900481368,0.29351608,593.28,592.27,0.33768382]
[1743900481568,0.96751608,593.28,592.27,0.33768382]
[1743900482970,0.33711463,593.27,592.27,0.33768382]
[1743900484371,0.29351979,593.26,592.27,0.33768382]
[1743900484573,0.337126,593.25,592.27,0.33768382]
[1743900487975,0.337126,593.25,592.28,0.2940812]
[1743900489574,0.88,593.24,592.28,0.2940812]
[1743900489772,1.21713168,593.24,592.28,0.2940812]
[1743900490171,0.33713736,593.23,592.28,0.2940812]
[1743900490476,0.63065468,593.23,592.28,0.2940812]
[1743900492580,0.63065468,593.23,592.27,0.33768382]
[1743900492774,0.63065468,593.23,592.29,0.29397457]
[1743900493080,0.33713736,593.23,592.3,0.29397457]
[1743900493277,0.33713736,593.23,592.31,0.29397457]
[1743900493480,0.29351855,593.22,592.28,0.29397457]
[1743900494379,0.29351855,593.22,592.27,0.33768382]
[1743900494579,0.29351855,593.22,592.28,0.29397144]
[1743900495981,0.33713736,593.23,592.27,0.33768382]
[1743900496176,0.33713736,593.23,592.29,0.29396091]
[1743900496481,0.29351855,593.21,592.3,0.29396091]
[1743900496681,0.29351855,593.21,592.28,0.29396091]
[1743900499183,0.33713736,593.23,592.28,0.29396091]
[1743900499384,0.29352351,593.2,592.27,0.33768382]
[1743900499883,0.29352351,593.2,592.19,1.25827326]
[1743900500385,0.3371601,593.19,592.19,1.25827326]
[1743900501591,0.3371601,593.19,584.9,0.61880919]
[1743900501592,0.3371601,593.19,592.2,0.29413078]
[1743900501887,0.3371601,593.19,592.21,0.29413078]
[1743900502088,0.3371601,593.19,591.91,0.29413078]
[1743900502289,0.29359532,593.18,591.91,0.29413078]
[1743900502589,0.33717146,593.17,592.07,0.29359532]
[1743900502889,0.33717146,593.17,592.08,0.29412672]
[1743900503184,0.33717146,593.17,592.09,0.29412672]
[1743900503388,0.33717146,593.17,591.91,0.29412672]
[1743900503589,0.33717146,593.17,592.07,0.2935978]
[1743900503786,0.33717146,593.17,592.08,0.29412672]
[1743900504090,0.88,593.16,592.09,0.29412672]
[1743900504290,0.33718283,593.15,592.08,0.29412672]
[1743900504588,0.33718283,593.15,592.09,0.29412672]
[1743900504788,0.33718283,593.15,592.08,0.29412672]
[1743900508291,0.33718283,593.15,592.02,0.29412672]
[1743900508496,0.29358294,593.14,592.07,0.29358294]
[1743900508794,0.3371942,593.13,592.08,0.29412672]
[1743900511098,0.3371942,593.13,592.01,1.25827326]
[1743900511297,0.3371942,593.13,592.02,0.29418668]
[1743900511798,0.29358665,593.12,592.03,0.29418668]
[1743900512000,0.63078654,593.12,592.03,0.29418668]
[1743900513994,0.63078654,593.12,592.04,1.25827326]
[1743900514192,0.33719989,593.12,592.05,0.29418668]
[1743900514395,0.29359284,593.11,592.05,0.29418668]
[1743900516194,0.29359284,593.11,592.03,0.29418668]
[1743900516394,0.29359284,593.11,592.04,0.29418668]
[1743900516595,0.29359284,593.11,592.05,0.29418668]
[1743900516795,0.63079841,593.11,592.03,0.29418668]
[1743900517100,0.33720557,593.11,592.03,0.29418668]
[1743900517500,0.29358789,593.1,592.03,0.29418668]
[1743900517900,0.29358789,593.1,592.02,1.55186115]
[1743900518101,0.29358789,593.1,592.03,0.2942552]
[1743900518603,0.29358789,593.1,592.02,0.29358789]
[1743900518804,0.29358789,593.1,592.04,0.29425593]
[1743900518998,0.29358789,593.1,592.03,0.29425593]
[1743900519304,0.29358789,593.1,592.04,0.29425593]
[1743900519499,0.29358789,593.1,592.03,0.29425593]
[1743900519704,0.29358789,593.1,592.04,0.29425593]
[1743900519905,0.29358789,593.1,592.03,0.29425593]
[1743900520103,0.29358789,593.1,592.04,0.29425593]
[1743900520304,0.29358789,593.1,592.02,0.29358789]
[1743900520305,0.29358789,593.1,592.03,0.29425593]
[1743900520504,0.29358789,593.1,592.04,0.29425593]
[1743900520702,0.29358789,593.1,592.03,0.29425593]
[1743900520903,0.29358789,593.1,592.04,0.29425593]
[1743900521101,0.29358789,593.1,592.03,0.29425593]
[1743900521303,0.29358789,593.1,592.02,0.29358789]
[1743900521503,0.29358789,593.1,592.03,0.29424826]
[1743900523007,0.33720557,593.11,591.87,1.25827326]
[1743900523207,0.33720557,593.11,592.04,0.29424483]
[1743900523408,0.29359408,593.09,592.05,0.29424483]
[1743900523607,0.29359408,593.09,592.03,0.29424483]
[1743900523808,0.29359408,593.09,592.04,0.29425974]
[1743900524010,0.29359408,593.09,592.03,0.29425974]
[1743900524210,0.29359408,593.09,592.05,0.29425974]
[1743900524410,0.29359408,593.09,592.06,0.29425974]
[1743900524604,0.29359408,593.09,592.02,0.29359408]
[1743900524605,0.29359408,593.09,592.03,0.29425974]
[1743900524806,0.29359408,593.09,592.02,0.29359408]
[1743900525111,0.29359408,593.09,592.03,0.29426152]
[1743900526111,0.33720557,593.11,592.03,0.29426152]
[1743900526310,0.33720557,593.11,591.89,0.29426152]
[1743900526512,0.29359408,593.08,592.02,0.29359408]
[1743900526712,0.29359408,593.08,592.03,0.29426201]
[1743900526909,0.29359408,593.08,591.89,0.29426201]
[1743900527814,1.01559408,593.08,591.89,0.29426201]
[1743900528216,1.01559408,593.08,591.91,1.25827326]
[1743900528415,1.01559408,593.08,591.92,0.29426201]
[1743900529016,0.722,593.08,591.92,0.29426201]
[1743900529315,0.29361142,593.07,591.93,0.29361142]
[1743900529509,0.29361142,593.07,591.94,0.29426201]
[1743900529710,0.91561142,593.07,591.94,0.29426201]
[1743900530716,0.91561142,593.07,591.94,1.55253527]
[1743900530909,0.91561142,593.07,591.95,0.29426201]
[1743900531615,0.91561142,593.07,591.94,1.25827326]
[1743900531815,0.91561142,593.07,591.95,0.29424804]
[1743900532116,0.622,593.07,591.95,0.29424804]
[1743900532519,0.29360894,593.06,591.95,0.29424804]
[1743900533316,0.29360894,593.06,592.0,1.25827326]
[1743900533520,0.29360894,593.06,592.01,0.29431395]
[1743900535022,0.622,593.07,592.01,0.29431395]
[1743900535322,0.29360151,593.05,592.01,0.29431395]
[1743900536123,0.29360151,593.05,592.1,1.25827326]
[1743900536317,0.29360151,593.05,592.11,0.29431395]
[1743900537925,0.29360151,593.05,592.1,1.25827326]
[1743900538125,0.622,593.07,592.11,0.29429418]
[1743900538726,0.2935817,593.06,592.11,0.29429418]
[1743900539427,0.2935817,593.06,592.11,1.55256744]
[1743900539621,0.2935817,593.06,592.12,0.29429418]
[1743900540827,0.2935817,593.06,592.12,1.55256744]
[1743900541026,0.622,593.07,592.13,0.29429418]
[1743900541323,0.29357922,593.05,592.13,0.29429418]
[1743900542922,0.29357922,593.05,592.23,1.25827326]
[1743900543322,0.29357922,593.05,592.24,0.29429418]
[1743900544031,0.622,593.07,592.24,0.29429418]
[1743900544425,0.29355569,593.04,592.24,0.29429418]
[1743900544827,0.29355569,593.04,592.22,0.29429418]
[1743900548231,0.29355569,593.04,592.21,1.25827326]
[1743900548434,0.29355569,593.04,592.22,0.29429023]
[1743900550032,0.622,593.07,592.22,0.29429023]
[1743900550335,0.29355569,593.03,592.22,0.29429023]
[1743900553039,0.622,593.07,592.22,0.29429023]
[1743900553339,0.29355569,593.02,592.22,0.29429023]
[1743900555641,0.715,593.01,592.22,0.29429023]
[1743900556534,0.29356312,593.0,592.22,0.29429023]
[1743900558243,0.29356312,593.0,592.23,0.29429023]
[1743900558441,0.29356312,593.0,592.21,0.29429023]
[1743900559041,0.715,593.01,592.21,0.29429023]
[1743900559443,0.29356436,593.0,592.21,0.29429023]
[1743900560336,0.29356436,593.0,592.22,0.29427805]
[1743900560541,0.29356436,593.0,592.21,0.29427805]
[1743900560843,0.29356436,593.0,592.22,0.29427805]
[1743900561037,0.29356436,593.0,592.21,0.29427805]
[1743900561243,0.29356436,593.0,592.22,0.29427805]
[1743900561538,0.29356436,593.0,592.23,0.29427805]
[1743900561741,0.29356436,593.0,592.2,1.25827326]
[1743900561742,0.29356436,593.0,592.21,0.29427805]
[1743900561943,0.29356436,593.0,592.22,0.2942781]
[1743900562139,0.715,593.01,592.21,0.2942781]
[1743900562336,0.29356436,592.99,592.22,0.2942781]
[1743900562542,0.29356436,592.99,592.21,0.2942781]
[1743900565042,0.715,593.01,592.21,0.2942781]
[1743900565348,0.29356436,592.99,592.21,0.2942781]
[1743900566849,0.29356436,592.99,592.17,0.2942781]
[1743900567050,0.29356436,592.99,592.18,0.2942781]
[1743900567245,0.29356436,592.99,592.17,0.2942781]
[1743900567447,0.29356436,592.99,592.18,0.2942781]
[1743900567749,0.29356436,592.99,592.19,0.2942781]
[1743900567950,0.29356436,592.99,592.17,0.2942781]
[1743900568152,0.715,593.01,592.2,0.2942781]
[1743900568451,0.29356931,592.99,592.21,0.2942781]
[1743900568644,0.29356931,592.99,592.17,0.2942781]
[1743900568849,0.29356931,592.99,592.18,0.2942781]
[1743900569048,0.29356931,592.99,592.17,0.2942781]
[1743900569253,0.29356931,592.99,592.18,0.2942781]
[1743900569446,0.29356931,592.99,592.17,0.2942781]
[1743900569746,0.29356931,592.99,592.18,0.2942781]
[1743900570050,0.29356931,592.99,592.17,0.2942781]
[1743900570250,0.29356931,592.99,591.93,1.51397637]
[1743900570251,0.29356931,592.99,592.23,1.25827326]
[1743900570451,0.29356931,592.99,592.24,0.2942781]
[1743900571051,0.715,593.01,592.24,0.2942781]
[1743900571951,0.715,593.01,592.23,1.25827326]
[1743900572151,0.715,593.01,592.24,0.29423837]
[1743900572551,0.715,593.01,592.25,1.25827326]
[1743900572749,0.715,593.01,592.26,0.29423837]
[1743900575460,0.715,593.01,592.19,0.29423837]
[1743900575755,0.715,593.01,592.2,0.29423837]
[1743900575951,0.715,593.01,592.19,0.29423837]
[1743900578858,0.715,593.01,592.18,0.2935396]
[1743900579057,0.715,593.01,592.19,0.29423471]
[1743900579461,0.893,593.0,592.19,0.29423471]
[1743900580457,0.893,593.0,592.18,0.29354084]
[1743900580759,0.893,593.0,592.19,0.29423471]
[1743900583261,0.893,593.0,592.09,0.29423471]
[1743900583460,0.893,593.0,592.18,0.29355322]
[1743900583656,0.893,593.0,592.19,0.29423471]
[1743900584161,0.893,593.0,592.2,0.29423655]
[1743900584461,0.893,593.0,592.21,0.29423655]
[1743900584761,0.723,592.99,592.22,0.29423655]
[1743900584958,0.723,592.99,592.08,1.25827326]
[1743900584959,0.723,592.99,592.09,0.29423655]
[1743900585157,0.723,592.99,592.1,0.29423655]
[1743900585360,0.723,592.99,592.09,0.29423655]
[1743900585562,0.723,592.99,592.1,0.29423655]
[1743900585762,0.723,592.99,592.09,0.29423655]
[1743900585962,0.723,592.99,592.17,1.25827326]
[1743900586162,0.723,592.99,592.18,0.29423655]
[1743900588463,0.723,592.99,592.2,1.25827326]
[1743900588670,0.723,592.99,592.21,0.29423655]
[1743900589870,0.723,592.99,592.2,1.25827326]
[1743900590065,0.723,592.99,592.21,0.29423801]
[1743900590670,0.723,592.99,592.25,1.25827326]
[1743900590971,0.723,592.99,592.26,0.29423801]
[1743900591170,0.723,592.99,592.27,0.29423624]
[1743900591363,0.723,592.99,592.26,0.29423624]
[1743900591566,0.723,592.99,592.27,0.29423624]
[1743900591769,0.723,592.99,592.26,0.29423624]
[1743900591969,0.723,592.99,592.28,0.29423624]
[1743900592172,0.723,592.99,592.29,0.29423624]
[1743900592366,0.723,592.99,592.26,0.29423624]
[1743900592566,0.723,592.99,592.27,0.29423624]
[1743900592869,0.723,592.99,592.28,0.29423624]
[1743900593071,0.723,592.99,592.26,0.29423624]
[1743900593271,0.723,592.99,592.27,0.29423624]
[1743900593471,0.723,592.99,592.26,0.29423624]
[1743900593672,0.723,592.99,592.27,0.29423624]
[1743900593866,0.723,592.99,592.26,0.29423624]
[1743900594065,0.723,592.99,592.27,0.29423624]
[1743900594268,0.723,592.99,592.26,0.29423624]
[1743900596771,0.723,592.99,592.27,1.25827326]
[1743900596970,0.723,592.99,592.28,0.29423624]
[1743900597873,0.723,592.99,592.27,1.25827326]
[1743900598173,0.723,592.99,592.28,0.29423674]
[1743900599070,0.723,592.99,592.28,1.55251]
[1743900599275,0.723,592.99,592.29,0.29423674]
[1743900601076,0.562,592.98,592.29,0.29423674]
[1743900601978,0.562,592.98,592.23,0.29423674]
[1743900602274,0.562,592.98,592.24,0.29423674]
[1743900602478,0.562,592.98,592.22,1.55180295]
[1743900602678,0.562,592.98,592.23,0.29422487]
[1743900603876,0.562,592.98,592.22,1.55180295]
[1743900604081,0.562,592.98,592.24,1.25827326]
[1743900604475,0.562,592.98,592.25,0.29423614]
[1743900606381,0.562,592.98,592.26,1.25827326]
[1743900606582,0.562,592.98,592.27,0.29423667]
[1743900608683,0.562,592.98,592.27,1.55250993]
[1743900608876,0.562,592.98,592.28,0.29423667]
[1743900609483,0.711,592.97,592.27,1.25827326]
[1743900609784,0.711,592.97,592.28,0.29423614]
[1743900611285,0.711,592.97,592.29,1.25827326]
[1743900611479,0.711,592.97,592.3,0.29423614]
[1743900616290,0.711,592.97,592.29,1.25827326]
[1743900616490,0.711,592.97,592.3,0.29417831]
[1743900616888,0.711,592.97,592.28,0.29417831]
[1743900617088,0.711,592.97,592.29,0.29417831]
[1743900617289,0.711,592.97,592.28,0.29417831]
[1743900617489,0.711,592.97,592.29,0.29417831]
[1743900617686,0.711,592.97,592.28,0.29417831]
[1743900617986,0.711,592.97,592.29,0.29417831]
[1743900618192,0.711,592.97,592.28,0.29417831]
[1743900618390,0.711,592.97,592.29,0.29417831]
[1743900618592,0.663,592.96,592.28,0.29417831]
[1743900618788,0.663,592.96,592.29,0.29417831]
[1743900618992,0.663,592.96,592.28,0.29417831]
[1743900619192,0.663,592.96,592.36,1.25827326]
[1743900619391,0.663,592.96,592.37,0.29417831]
[1743900620994,0.663,592.96,592.37,1.55245157]
[1743900621190,0.663,592.96,592.38,0.29417831]
[1743900623098,0.663,592.96,592.37,0.29417831]
[1743900623300,0.663,592.96,592.38,0.29417831]
[1743900623493,0.663,592.96,592.37,0.29417831]
[1743900623800,0.663,592.96,592.38,0.29417831]
[1743900624000,0.663,592.96,592.37,0.29417831]
[1743900625403,0.663,592.96,592.38,0.29421535]
[1743900625702,0.663,592.96,592.39,0.29421535]
[1743900626000,0.663,592.96,592.36,0.29421535]
[1743900626202,0.663,592.96,592.37,0.29421535]
[1743900626407,0.663,592.96,592.36,0.29421535]
[1743900627699,0.663,592.96,592.35,0.29421535]
[1743900627903,0.663,592.96,592.36,0.29421535]
[1743900628105,0.663,592.96,592.35,0.29421535]
[1743900629601,0.663,592.96,592.34,1.25827326]
[1743900629806,0.663,592.96,592.35,0.29421505]
[1743900630504,0.663,592.96,592.36,0.29420549]
[1743900630800,0.663,592.96,592.37,0.29420549]
[1743900631005,0.663,592.96,592.32,0.29420549]
[1743900631200,0.663,592.96,592.31,1.25827326]
[1743900631804,0.663,592.96,592.32,0.2942049]
[1743900632204,0.663,592.96,592.33,1.25827326]
[1743900632404,0.663,592.96,592.34,0.2942049]
[1743900633505,0.63073279,593.11,592.34,0.2942049]
[1743900634206,0.33720557,593.11,592.34,0.2942049]
[1743900634406,0.626,593.1,592.34,0.2942049]
[1743900634606,0.626,593.1,592.33,1.25827326]
[1743900634900,0.626,593.1,592.34,0.29420375]
[1743900636200,0.775,593.09,592.34,0.29420375]
[1743900636406,0.775,593.09,592.34,1.55247701]
[1743900636705,0.775,593.09,592.35,0.29420375]
[1743900638006,0.775,593.09,592.34,1.25827326]
[1743900638207,0.775,593.09,592.35,0.29419751]
[1743900641711,0.775,593.09,592.38,1.25827326]
[1743900641910,0.775,593.09,592.39,0.29419751]
[1743900643113,0.775,593.09,592.38,1.25827326]
[1743900643305,0.775,593.09,592.39,0.29419145]
[1743900644813,0.775,593.09,592.29,0.29349009]
[1743900644814,0.775,593.09,592.4,0.29419175]
[1743900645013,0.775,593.09,592.36,0.29419175]
[1743900645216,0.775,593.09,592.37,0.29419175]
[1743900645415,0.775,593.09,592.36,0.29419175]
[1743900645617,0.775,593.09,592.37,0.29419175]
[1743900645812,0.775,593.09,592.36,0.29419175]
[1743900646018,0.775,593.09,592.37,0.29419175]
[1743900646219,0.775,593.09,592.36,0.29419175]
[1743900646414,0.775,593.09,592.37,0.29419175]
[1743900646719,0.775,593.09,592.38,0.29419175]
[1743900646918,0.775,593.09,592.36,0.29419175]
[1743900649818,0.775,593.09,592.35,1.25827326]
[1743900650012,0.775,593.09,592.36,0.29417963]
[1743900651018,0.775,593.09,592.37,0.29417963]
[1743900651222,0.775,593.09,592.32,0.29417963]
[1743900651518,0.775,593.09,592.33,0.29417963]
[1743900651720,0.775,593.09,592.32,0.29417963]
[1743900652019,0.775,593.09,592.33,0.29417963]
[1743900652220,0.775,593.09,592.32,0.29417963]
[1743900652515,0.775,593.09,592.33,0.29417963]
[1743900653219,0.775,593.09,592.32,0.29349009]
[1743900653418,0.775,593.09,592.33,0.29417439]
[1743900654818,0.775,593.09,592.32,0.29349009]
[1743900655020,0.775,593.09,592.33,0.29416872]
[1743900655418,0.775,593.09,592.32,0.29350246]
[1743900655615,0.775,593.09,592.33,0.29416872]
[1743900658320,0.775,593.09,592.18,0.29416872]
[1743900658521,0.775,593.09,592.32,0.29348266]
[1743900658721,0.775,593.09,592.33,0.29416872]
[1743900659018,0.775,593.09,592.34,0.29416872]
[1743900659220,0.775,593.09,592.2,0.29416872]
[1743900659418,0.775,593.09,592.35,0.29416872]
[1743900659621,0.775,593.09,592.36,0.29416872]
[1743900659823,0.775,593.09,592.19,0.33772944]
[1743900660028,0.775,593.09,592.2,0.29417412]
[1743900660923,0.775,593.09,592.2,1.55244738]
[1743900661124,0.775,593.09,592.21,0.29417412]
[1743900661429,0.775,593.09,592.21,0.58767163]
[1743900661724,0.775,593.09,592.22,0.29417412]
[1743900662726,0.775,593.09,592.21,0.29349751]
[1743900662931,0.775,593.09,592.34,1.25827326]
[1743900663125,0.775,593.09,592.35,0.29417224]
[1743900664827,0.775,593.09,592.35,1.5524455]
[1743900665030,0.775,593.09,592.36,0.29417224]
[1743900666027,0.723,593.08,592.35,1.25827326]
[1743900666233,0.723,593.08,592.36,0.29417866]
[1743900666527,0.723,593.08,592.35,1.25827326]
[1743900666728,0.723,593.08,592.36,0.29417865]
[1743900667631,0.723,593.08,592.35,1.25827326]
[1743900667830,0.723,593.08,592.36,0.2941817]
[1743900668032,0.723,593.08,592.37,0.2941817]
[1743900668232,0.723,593.08,592.34,0.2941817]
[1743900668433,0.723,593.08,592.35,0.2941817]
[1743900668633,0.723,593.08,592.36,0.2941817]
[1743900668934,0.723,593.08,592.37,0.2941817]
[1743900669230,0.723,593.08,592.38,0.2941817]
[1743900669432,0.723,593.08,592.39,0.2941817]
[1743900669632,0.723,593.08,592.34,0.2941817]
[1743900669833,0.723,593.08,592.4,0.2941817]
[1743900670035,0.723,593.08,592.41,0.2941817]
[1743900670229,0.723,593.08,592.34,0.2941817]
[1743900670428,0.723,593.08,592.2,0.29420608]
[1743900670735,0.723,593.08,592.3,0.29349999]
[1743900671033,0.723,593.08,592.31,0.29420608]
[1743900671234,0.723,593.08,592.32,0.29420608]
[1743900671434,0.723,593.08,592.2,0.29420608]
[1743900672734,0.723,593.08,592.21,0.29351732]
[1743900672929,0.723,593.08,592.22,0.29420608]
[1743900673332,0.723,593.08,592.2,0.29420608]
[1743900673532,0.723,593.08,592.21,0.58772092]
[1743900673729,0.723,593.08,592.22,0.29420608]
[1743900674335,0.723,593.08,592.21,0.29351484]
[1743900674535,0.723,593.08,592.23,0.2942078]
[1743900674735,0.723,593.08,592.24,0.2942078]
[1743900674935,0.723,593.08,592.22,0.2942078]
[1743900676138,0.723,593.08,592.19,0.33772944]
[1743900676437,0.723,593.08,592.21,0.29352227]
[1743900676737,0.723,593.08,592.22,0.29423571]
[1743900677637,0.723,593.08,592.21,0.29352227]
[1743900677831,0.723,593.08,592.22,0.29423511]
[1743900679340,0.723,593.08,592.23,0.29422617]
[1743900679640,0.723,593.08,592.24,0.29422617]
[1743900679935,0.723,593.08,592.25,0.29422617]
[1743900680138,0.723,593.08,592.2,0.29422617]
[1743900680334,0.723,593.08,592.19,1.5960027]
[1743900680541,0.723,593.08,592.2,0.29428602]
[1743900681040,0.723,593.08,592.19,1.5960027]